bitfinex-derivatives/quotes_BNBF0:USTF0_20251225
["timestamp","ask_amount","ask_price","bid_price","bid_amount"]
[1766639930301,0.20654658,842.67,842.01,0.88777633]
[1766639930598,1.17883017,842.66,842.01,0.88777633]
[1766639930801,1.17883017,842.65,842.01,0.88777633]
[1766639931000,1.17883017,842.64,842.01,0.88777633]
[1766639931201,1.17883017,842.63,842.01,0.88777633]
[1766639931401,0.20654658,842.67,842.01,0.88777633]
[1766639931601,1.17887603,842.66,842.01,0.88777633]
[1766639931804,1.17887603,842.65,842.01,0.88777633]
[1766639932005,1.17887603,842.64,842.01,0.88777633]
[1766639932304,1.17887603,842.63,842.01,0.88777633]
[1766639932504,1.17887603,842.62,842.01,0.88777633]
[1766639932705,0.20654658,842.67,842.01,0.88777633]
[1766639932903,1.17892989,842.66,842.01,0.88777633]
[1766639933201,1.17892989,842.65,842.01,0.88777633]
[1766639933404,1.17892989,842.64,842.01,0.88777633]
[1766639933602,1.17892989,842.63,842.01,0.88777633]
[1766639933801,1.17892989,842.62,842.01,0.88777633]
[1766639934001,0.20654658,842.67,842.01,0.88777633]
[1766639934202,1.17892747,842.66,842.01,0.88777633]
[1766639934402,1.17892747,842.65,842.01,0.88777633]
[1766639934601,1.17892747,842.64,842.01,0.88777633]
[1766639934807,1.17892747,842.63,842.01,0.88777633]
[1766639935107,1.17892747,842.62,842.01,0.88777633]
[1766639935307,0.20654658,842.67,842.01,0.88777633]
[1766639935506,1.17892408,842.66,842.01,0.88777633]
[1766639935707,1.17892408,842.65,842.01,0.88777633]
[1766639935907,1.17892408,842.64,842.01,0.88777633]
[1766639936103,1.17892408,842.63,842.01,0.88777633]
[1766639936304,1.17892408,842.62,842.01,0.88777633]
[1766639936504,0.20654658,842.67,842.01,0.88777633]
[1766639936708,1.17892343,842.66,842.01,0.88777633]
[1766639937008,1.17892343,842.65,842.01,0.88777633]
[1766639937207,1.17892343,842.64,842.01,0.88777633]
[1766639937404,1.17892343,842.63,842.01,0.88777633]
[1766639937609,1.17892343,842.62,842.01,0.88777633]
[1766639937809,0.20654658,842.67,842.01,0.88777633]
[1766639938007,1.17892341,842.66,842.01,0.88777633]
[1766639938206,1.17892341,842.65,842.01,0.88777633]
[1766639938409,1.17892341,842.64,842.01,0.88777633]
[1766639938710,1.17892341,842.63,842.01,0.88777633]
[1766639938910,1.17892341,842.62,842.01,0.88777633]
[1766639939110,0.20654658,842.67,842.01,0.88777633]
[1766639939310,1.17892407,842.66,842.01,0.88777633]
[1766639939509,1.17892407,842.65,842.01,0.88777633]
[1766639939811,0.20654658,842.67,842.01,0.88777633]
[1766639940011,1.17892535,842.66,842.01,0.88777633]
[1766639940209,1.17892535,842.65,842.01,0.88777633]
[1766639940508,0.20654658,842.67,842.01,0.88777633]
[1766639940509,1.17892535,842.64,842.01,0.88777633]
[1766639940709,1.17892535,842.63,842.01,0.88777633]
[1766639940914,1.17892535,842.62,842.01,0.88777633]
[1766639941213,0.20654658,842.67,842.01,0.88777633]
[1766639941414,1.17892748,842.66,842.01,0.88777633]
[1766639941611,1.17892748,842.65,842.01,0.88777633]
[1766639941814,1.17892748,842.64,842.01,0.88777633]
[1766639942114,1.17892748,842.63,842.01,0.88777633]
[1766639942411,1.17892748,842.62,842.01,0.88777633]
[1766639942609,0.20654658,842.67,842.01,0.88777633]
[1766639942814,1.17893165,842.66,842.01,0.88777633]
[1766639943014,1.17893165,842.65,842.01,0.88777633]
[1766639943311,1.17893165,842.64,842.01,0.88777633]
[1766639943514,1.17893165,842.63,842.01,0.88777633]
[1766639943711,1.17893165,842.62,842.01,0.88777633]
[1766639943915,0.20654658,842.67,842.01,0.88777633]
[1766639944213,1.17893546,842.66,842.01,0.88777633]
[1766639944410,0.20654658,842.67,842.01,0.88777633]
[1766639944411,1.17893546,842.65,842.01,0.88777633]
[1766639944616,1.17893546,842.64,842.01,0.88777633]
[1766639944812,1.17893546,842.63,842.01,0.88777633]
[1766639945013,1.17893546,842.62,842.01,0.88777633]
[1766639945212,0.20654658,842.67,842.01,0.88777633]
[1766639945417,1.17894528,842.66,842.01,0.88777633]
[1766639945617,1.17894528,842.65,842.01,0.88777633]
[1766639945915,1.17894528,842.64,842.01,0.88777633]
[1766639946114,1.17894528,842.63,842.01,0.88777633]
[1766639946415,1.17894528,842.62,842.01,0.88777633]
[1766639946618,0.20654658,842.67,842.01,0.88777633]
[1766639946917,1.17895145,842.66,842.01,0.88777633]
[1766639947115,1.17895145,842.65,842.01,0.88777633]
[1766639947319,1.17895145,842.64,842.01,0.88777633]
[1766639947520,1.17895145,842.63,842.01,0.88777633]
[1766639947716,1.17895145,842.62,842.01,0.88777633]
[1766639947920,0.20654658,842.67,842.01,0.88777633]
[1766639948116,1.17895866,842.66,842.01,0.88777633]
[1766639948320,1.17895866,842.65,842.01,0.88777633]
[1766639948520,1.17895866,842.64,842.01,0.88777633]
[1766639948719,1.17895866,842.63,842.01,0.88777633]
[1766639948923,1.17895866,842.62,842.01,0.88777633]
[1766639949223,0.20654658,842.67,842.01,0.88777633]
[1766639949419,1.17811894,842.66,842.01,0.88777633]
[1766639949720,1.17811894,842.65,842.01,0.88777633]
[1766639949922,1.17811894,842.64,842.01,0.88777633]
[1766639950216,1.17811894,842.63,842.01,0.88777633]
[1766639950420,1.17812907,842.62,842.01,0.88777633]
[1766639950618,0.20654658,842.67,842.01,0.88777633]
[1766639950821,1.17812907,842.66,842.01,0.88777633]
[1766639951023,1.17812907,842.65,842.01,0.88777633]
[1766639951218,1.17812907,842.64,842.01,0.88777633]
[1766639951421,0.20654658,842.67,842.01,0.88777633]
[1766639951422,1.17812907,842.63,842.01,0.88777633]
[1766639951626,1.17812907,842.62,842.01,0.88777633]
[1766639951825,0.20654658,842.67,842.01,0.88777633]
[1766639952121,1.17814047,842.66,842.01,0.88777633]
[1766639952326,1.17814047,842.65,842.01,0.88777633]
[1766639952525,1.17814047,842.64,842.01,0.88777633]
[1766639952824,1.17814047,842.63,842.01,0.88777633]
[1766639953023,1.17814047,842.62,842.01,0.88777633]
[1766639953224,0.20654658,842.67,842.01,0.88777633]
[1766639953427,1.17801593,842.66,842.01,0.88777633]
[1766639953624,1.17801593,842.65,842.01,0.88777633]
[1766639953828,1.17801593,842.64,842.01,0.88777633]
[1766639954123,1.17801593,842.63,842.01,0.88777633]
[1766639954329,1.17801593,842.62,842.01,0.88777633]
[1766639954527,0.20654658,842.67,842.01,0.88777633]
[1766639954727,1.17803256,842.66,842.01,0.88777633]
[1766639954928,1.17803256,842.65,842.01,0.88777633]
[1766639955227,1.17803256,842.64,842.01,0.88777633]
[1766639955428,1.17804983,842.63,842.01,0.88777633]
[1766639955728,1.17804983,842.62,842.01,0.88777633]
[1766639956029,0.20654658,842.67,842.01,0.88777633]
[1766639956224,1.17805176,842.66,842.01,0.88777633]
[1766639956428,1.17805176,842.65,842.01,0.88777633]
[1766639956728,1.17805176,842.64,842.01,0.88777633]
[1766639957028,1.17805176,842.63,842.01,0.88777633]
[1766639957228,1.17805176,842.62,842.01,0.88777633]
[1766639957528,0.20654658,842.67,842.03,0.88777633]
[1766639957728,1.17813168,842.66,842.03,0.88777633]
[1766639957928,1.17813168,842.65,842.03,0.88777633]
[1766639958124,1.17813168,842.64,842.03,0.88777633]
[1766639958328,0.20654658,842.67,842.03,0.88777633]
[1766639958526,1.17813169,842.66,842.03,0.88777633]
[1766639958828,1.17813169,842.65,842.03,0.88777633]
[1766639959025,1.17813169,842.64,842.03,0.88777633]
[1766639959229,0.20654658,842.67,842.03,0.88777633]
[1766639959426,1.17813169,842.66,842.03,0.88777633]
[1766639959730,1.17813169,842.65,842.03,0.88777633]
[1766639959926,1.17813169,842.64,842.03,0.88777633]
[1766639960127,0.20654658,842.67,842.07,0.88777633]
[1766639961331,0.20654658,842.67,842.06,0.88777633]
[1766639964234,0.20654658,842.67,842.05,0.88777633]
[1766639965730,0.88304172,842.81,842.05,0.88777633]
[1766639965934,0.20652022,842.78,842.05,0.88777633]
[1766639966134,1.17753197,842.77,842.05,0.88777633]
[1766639966331,1.17753197,842.76,842.05,0.88777633]
[1766639966534,1.17753197,842.75,842.05,0.88777633]
[1766639966834,1.17753197,842.74,842.05,0.88777633]
[1766639967134,1.17753197,842.73,842.05,0.88777633]
[1766639967430,1.17753197,842.72,842.05,0.88777633]
[1766639967634,1.17753197,842.71,842.05,0.88777633]
[1766639967834,0.20652022,842.78,842.06,0.88777633]
[1766639968133,1.17743958,842.77,842.05,0.88777633]
[1766639968328,1.17743958,842.76,842.05,0.88777633]
[1766639968535,0.20652022,842.78,842.11,0.88777633]
[1766639968835,1.1774813,842.77,842.11,0.88777633]
[1766639969035,0.20652022,842.78,842.11,0.88777633]
[1766639969333,0.20652022,842.78,842.1,0.88777633]
[1766639971138,0.20652022,842.78,842.09,0.88777633]
[1766639974240,0.20652022,842.78,842.08,0.88777633]
[1766639976143,0.20652022,842.78,842.09,0.88777633]
[1766639977440,0.20649388,842.92,842.2,0.88777633]
[1766639977844,0.20649388,842.92,842.27,0.88777633]
[1766639978246,0.20649388,842.92,842.25,0.88777633]
[1766639978446,0.20649388,842.92,842.26,0.88777633]
[1766639979148,0.20649388,842.92,842.24,0.88777633]
[1766639979944,0.88304172,843.18,842.29,0.88777633]
[1766639980247,0.20644549,843.13,842.38,0.88777633]
[1766639981146,0.20644549,843.13,842.35,0.88777633]
[1766639982146,0.20644549,843.13,842.34,0.88777633]
[1766639983052,0.20644549,843.13,842.33,0.88777633]
[1766639984148,0.20644549,843.13,842.31,0.88777633]
[1766639984851,0.20644549,843.13,842.39,0.88777633]
[1766639985352,0.20644549,843.13,842.37,0.88777633]
[1766639987244,0.20644549,843.13,842.35,0.88777633]
[1766639988254,0.20644549,843.13,842.34,0.88777633]
[1766639989156,0.20644549,843.13,842.33,0.88777633]
[1766639990255,0.20644549,843.13,842.32,0.88777633]
[1766639991157,0.20644549,843.13,842.31,0.88777633]
[1766639994155,0.20644549,843.13,842.3,0.88777633]
[1766639994360,0.88304172,843.58,842.3,0.88777633]
[1766639994659,0.20640263,843.23,842.3,0.88777633]
[1766640000668,0.20640263,843.23,842.15,1.18794037]
[1766640000968,0.20640263,843.23,842.3,0.88299299]
[1766640001775,0.20640263,843.23,842.27,0.88299299]
[1766640001973,0.20640263,843.23,842.19,0.88299299]
[1766640002171,0.20640263,843.23,842.2,0.88299299]
[1766640004074,0.20640263,843.23,842.21,0.88299299]
[1766640006178,0.20640263,843.23,841.91,1.78191056]
[1766640006179,0.20640263,843.23,842.22,0.88299299]
[1766640008074,0.20640263,843.23,842.23,0.88299299]
[1766640009280,0.20640263,843.23,842.24,0.88299299]
[1766640010379,0.20640263,843.23,842.25,0.88299299]
[1766640012277,0.20640263,843.23,842.26,0.88299299]
[1766640013280,0.20640263,843.23,842.27,0.88299299]
[1766640014279,0.20640263,843.23,842.28,0.88299299]
[1766640015182,0.20640263,843.23,841.44,0.00897838]
[1766640015183,0.20640263,843.23,842.29,0.88299299]
[1766640016185,0.20640263,843.23,842.3,0.88299299]
[1766640017185,0.20640263,843.23,842.31,0.88299299]
[1766640018186,0.20640263,843.23,842.33,0.88299299]
[1766640018386,1.17442106,843.22,842.33,0.88299299]
[1766640018686,0.20640263,843.23,842.33,0.88299299]
[1766640018885,1.17442106,843.22,842.33,0.88299299]
[1766640019186,0.20640263,843.23,842.34,0.88299299]
[1766640019388,1.17447769,843.22,842.34,0.88299299]
[1766640019586,1.17447769,843.21,842.34,0.88299299]
[1766640019787,0.20640263,843.23,842.34,0.88299299]
[1766640020083,1.174955,843.22,842.36,0.88299299]
[1766640020381,1.174955,843.21,842.36,0.88299299]
[1766640020587,1.174955,843.2,842.36,0.88299299]
[1766640020787,1.174955,843.19,842.36,0.88299299]
[1766640020986,0.20640263,843.23,842.36,0.88299299]
[1766640021184,1.17559083,843.22,842.38,0.88299299]
[1766640021488,1.17559083,843.21,842.38,0.88299299]
[1766640021685,1.17559083,843.2,842.38,0.88299299]
[1766640021988,1.17559083,843.19,842.38,0.88299299]
[1766640022285,1.17559083,843.18,842.4,0.88299299]
[1766640022485,1.17559083,843.17,842.4,0.88299299]
[1766640022686,1.17559083,843.16,842.4,0.88299299]
[1766640022884,1.17559083,843.15,842.4,0.88299299]
[1766640023087,0.20640263,843.23,842.41,0.88299299]
[1766640023385,1.17675915,843.22,842.41,0.88299299]
[1766640023585,1.17675915,843.21,842.26,1.18794037]
[1766640023788,1.17675915,843.2,842.41,0.88865862]
[1766640023986,1.17675915,843.19,842.41,0.88865862]
[1766640024185,1.17675915,843.18,842.42,0.88865862]
[1766640024387,1.17675915,843.17,842.42,0.88865862]
[1766640024687,1.17675915,843.16,842.42,0.88865862]
[1766640024886,1.17675915,843.15,842.42,0.88865862]
[1766640025192,1.17675915,843.14,842.42,0.88865862]
[1766640025386,0.20640263,843.23,842.42,0.88865862]
[1766640025587,1.17726339,843.22,842.42,0.88865862]
[1766640025886,1.17726339,843.21,842.42,0.88865862]
[1766640026089,1.17726339,843.2,842.42,0.88865862]
[1766640026290,1.17726339,843.19,842.42,0.88865862]
[1766640026489,1.17726339,843.18,842.42,0.88865862]
[1766640026688,1.17726339,843.17,842.42,0.88865862]
[1766640026991,1.17726339,843.16,842.42,0.88865862]
[1766640027292,1.17726339,843.15,842.42,0.88865862]
[1766640027487,1.17726339,843.14,842.42,0.88865862]
[1766640027692,0.20640263,843.23,842.42,0.88865862]
[1766640027890,1.17724201,843.22,842.42,0.88865862]
[1766640028090,1.17724201,843.21,842.42,0.88865862]
[1766640028392,1.17724201,843.2,842.42,0.88865862]
[1766640028600,1.17724201,843.19,842.42,0.88865862]
[1766640028803,1.17724201,843.18,842.42,0.88865862]
[1766640029002,1.17724201,843.17,842.42,0.88865862]
[1766640029197,1.17724201,843.16,842.42,0.88865862]
[1766640029397,1.17724201,843.15,842.42,0.88865862]
[1766640029596,1.17724201,843.14,842.42,0.88865862]
[1766640029901,0.20640263,843.23,842.42,0.88865862]
[1766640030099,1.17721834,843.22,842.42,0.88865862]
[1766640030297,1.17721834,843.21,842.42,0.88865862]
[1766640030497,1.17721834,843.2,842.42,0.88865862]
[1766640030696,1.17721834,843.19,842.42,0.88865862]
[1766640030901,0.20640263,843.23,842.42,0.88865862]
[1766640031101,1.17724008,843.22,842.42,0.88865862]
[1766640031397,1.17724008,843.21,842.42,0.88865862]
[1766640031597,1.17724008,843.2,842.42,0.88865862]
[1766640031795,1.17724008,843.19,842.42,0.88865862]
[1766640032001,1.17724008,843.18,842.42,0.88892008]
[1766640032198,1.17724008,843.17,842.42,0.88892008]
[1766640032502,1.17724008,843.16,842.42,0.88892008]
[1766640032700,1.17724008,843.15,842.42,0.88892008]
[1766640033001,1.17724008,843.14,842.42,0.88892008]
[1766640033204,0.20640263,843.23,842.43,0.88892008]
[1766640033397,1.17733495,843.22,842.43,0.88892008]
[1766640033597,1.17733495,843.21,842.43,0.88892008]
[1766640033797,1.17733495,843.2,842.43,0.88892008]
[1766640034001,1.17733495,843.19,842.43,0.88892008]
[1766640034199,1.17733495,843.18,842.43,0.88892008]
[1766640034498,1.17733495,843.17,842.43,0.88892008]
[1766640034701,1.17733495,843.16,842.43,0.88892008]
[1766640034897,1.17733495,843.15,842.43,0.88892008]
[1766640035099,1.17733495,843.14,842.43,0.88892008]
[1766640035301,1.17733495,843.13,842.43,0.88892008]
[1766640035505,0.20640263,843.23,842.43,0.88892008]
[1766640035702,1.17748954,843.22,842.43,0.88892008]
[1766640035899,1.17748954,843.21,842.43,0.88892008]
[1766640036204,1.17748954,843.2,842.43,0.88892008]
[1766640036403,1.17748954,843.19,842.43,0.88892008]
[1766640036706,1.17748954,843.18,842.43,0.88892008]
[1766640036898,1.17748954,843.17,842.43,0.88892008]
[1766640037200,1.17748954,843.16,842.43,0.88892008]
[1766640037503,1.17748954,843.15,842.43,0.88892008]
[1766640037704,1.17748954,843.14,842.43,0.88892008]
[1766640038001,1.17748954,843.13,842.43,0.88892008]
[1766640038302,0.20640263,843.23,842.44,0.88892008]
[1766640038605,1.17773171,843.22,842.44,0.88892008]
[1766640038804,1.17773171,843.21,842.44,0.88892008]
[1766640039005,1.17773171,843.2,842.44,0.88892008]
[1766640039200,0.20640263,843.23,842.44,0.88892008]
[1766640039201,1.17773171,843.19,842.44,0.88892008]
[1766640039404,1.17773171,843.18,842.44,0.88892008]
[1766640039605,1.17773171,843.17,842.44,0.88892008]
[1766640039806,1.17773171,843.16,842.42,0.88892008]
[1766640040002,1.17773171,843.15,842.42,0.88892008]
[1766640040305,1.17773171,843.14,842.43,0.88892008]
[1766640040503,1.17773171,843.13,842.43,0.88892008]
[1766640040706,1.17773171,843.12,842.43,0.88892008]
[1766640041003,1.17773171,843.11,842.43,0.88892008]
[1766640041203,1.17773171,843.1,842.43,0.88892008]
[1766640041407,0.88499405,843.21,842.43,0.88892008]
[1766640041603,1.17802526,843.2,842.43,0.88892008]
[1766640041805,1.17802526,843.19,842.43,0.88892008]
[1766640042006,1.1780252,843.18,842.43,0.88892008]
[1766640042208,1.1780252,843.17,842.44,0.88892008]
[1766640042406,1.1780252,843.16,842.44,0.88892008]
[1766640042603,1.1780252,843.15,842.44,0.88892008]
[1766640042807,1.1780252,843.14,842.44,0.88892008]
[1766640043109,1.1780252,843.13,842.44,0.88892008]
[1766640043304,1.1780252,843.12,842.44,0.88892008]
[1766640043504,1.1780252,843.11,842.44,0.88892008]
[1766640043803,1.1780252,843.1,842.44,0.88892008]
[1766640044007,1.1780252,843.09,842.44,0.88892008]
[1766640044205,0.88499405,843.2,842.45,0.88892008]
[1766640044407,1.17862962,843.19,842.45,0.88892008]
[1766640044707,1.17862962,843.18,842.45,0.88892008]
[1766640045004,1.17862962,843.17,842.45,0.88892008]
[1766640045208,1.17862962,843.16,842.45,0.88892008]
[1766640045408,1.17862962,843.15,842.45,0.88892008]
[1766640045608,1.17862962,843.14,842.45,0.88892008]
[1766640045806,1.17862962,843.13,842.45,0.88892008]
[1766640046006,1.17862962,843.12,842.45,0.88892008]
[1766640046309,1.17862962,843.11,842.46,0.88892008]
[1766640046510,1.17862962,843.1,842.46,0.88892008]
[1766640046710,1.17862962,843.09,842.46,0.88892008]
[1766640046911,1.17862962,843.08,842.46,0.88892008]
[1766640047108,1.17862962,843.07,842.46,0.88892008]
[1766640047311,0.88499405,843.18,842.46,0.88892008]
[1766640047508,1.17909805,843.17,842.46,0.88892008]
[1766640047807,1.17909805,843.16,842.46,0.88892008]
[1766640048011,1.17909805,843.15,842.46,0.88892008]
[1766640048210,1.17909805,843.14,842.46,0.88892008]
[1766640048409,1.17909805,843.13,842.46,0.88892008]
[1766640048612,1.17909805,843.12,842.46,0.88892008]
[1766640048908,1.17909805,843.11,842.46,0.88892008]
[1766640049109,1.17909805,843.1,842.46,0.88892008]
[1766640049308,1.17909805,843.09,842.46,0.88892008]
[1766640049512,1.17909805,843.08,842.46,0.88892008]
[1766640049710,1.17909805,843.07,842.46,0.88892008]
[1766640049909,0.88499405,843.18,842.46,0.88892008]
[1766640050110,1.17935992,843.17,842.46,0.88892008]
[1766640050413,1.17935992,843.16,842.46,0.88892008]
[1766640050613,1.17935992,843.15,842.46,0.88892008]
[1766640050814,1.17935992,843.14,842.46,0.88892008]
[1766640051014,1.17935992,843.13,842.46,0.88892008]
[1766640051211,1.17935992,843.12,842.46,0.88892008]
[1766640051415,1.17935992,843.11,842.46,0.88892008]
[1766640051616,1.17935992,843.1,842.46,0.88892008]
[1766640051817,1.17935992,843.09,842.46,0.88892008]
[1766640052018,1.17935992,843.08,842.46,0.88892008]
[1766640052219,1.17935992,843.07,842.46,0.88892008]
[1766640052421,1.17935992,843.06,842.46,0.88892008]
[1766640052716,0.88499405,843.18,842.46,0.88892008]
[1766640053018,1.17995593,843.17,842.46,0.88892008]
[1766640053215,1.17995593,843.16,842.46,0.88892008]
[1766640053519,1.17995593,843.15,842.46,0.88892008]
[1766640053716,1.17995593,843.14,842.46,0.88892008]
[1766640053918,1.17994976,843.13,842.46,0.88892008]
[1766640054117,1.17994976,843.12,842.46,0.88892008]
[1766640054318,1.17994976,843.11,842.46,0.88892008]
[1766640054517,1.17994976,843.1,842.46,0.88892008]
[1766640054716,1.17994976,843.09,842.46,0.88892008]
[1766640055017,1.17994976,843.08,842.46,0.88892008]
[1766640055216,1.17994976,843.07,842.46,0.88892008]
[1766640055417,1.17994976,843.06,842.46,0.88892008]
[1766640055616,0.88499405,843.18,842.46,0.88892008]
[1766640055820,1.17993949,843.17,842.46,0.88892008]
[1766640056017,1.17993949,843.16,842.46,0.88892008]
[1766640056218,0.88499405,843.18,842.46,0.88892008]
[1766640056219,1.17993949,843.15,842.46,0.88892008]
[1766640056521,1.17993949,843.14,842.46,0.88892008]
[1766640056716,0.88499405,843.18,842.46,0.88892008]
[1766640056717,1.17993949,843.13,842.46,0.88892008]
[1766640056918,1.17993949,843.12,842.46,0.88892008]
[1766640057117,1.17993949,843.11,842.46,0.88892008]
[1766640057420,1.17993949,843.1,842.46,0.88892008]
[1766640057618,1.17993949,843.09,842.46,0.88892008]
[1766640057820,1.17993949,843.08,842.46,0.88892008]
[1766640058019,1.17993949,843.07,842.46,0.88892008]
[1766640058218,1.17993949,843.06,842.46,0.88892008]
[1766640058520,0.88499405,843.18,842.46,0.88892008]
[1766640058719,1.17992957,843.17,842.46,0.88892008]
[1766640058919,1.17992957,843.16,842.46,0.88892008]
[1766640059120,1.17992957,843.15,842.46,0.88892008]
[1766640059318,1.17992957,843.14,842.46,0.88892008]
[1766640059518,1.17992957,843.13,842.46,0.88892008]
[1766640059719,1.17992957,843.12,842.46,0.88892008]
[1766640059924,1.17992957,843.11,842.46,0.88892008]
[1766640060124,1.17992957,843.1,842.46,0.88892008]
[1766640060324,1.17992957,843.09,842.46,0.88892008]
[1766640060525,1.17992957,843.08,842.46,0.88892008]
[1766640060722,1.17992957,843.07,842.46,0.88892008]
[1766640061024,0.88499405,843.18,842.46,0.88892008]
[1766640061227,1.17992634,843.17,842.46,0.88892008]
[1766640061429,1.17992634,843.16,842.46,0.88892008]
[1766640061627,1.17992634,843.15,842.46,0.88892008]
[1766640061824,1.17992634,843.14,842.46,0.88892008]
[1766640062028,1.17992634,843.13,842.46,0.88892008]
[1766640062226,1.17992634,843.12,842.46,0.88892008]
[1766640062527,1.17992634,843.11,842.46,0.88892008]
[1766640062729,1.17992634,843.1,842.46,0.88892008]
[1766640062926,1.17992634,843.09,842.46,0.88892008]
[1766640063127,1.17992634,843.08,842.46,0.88892008]
[1766640063429,1.17992634,843.07,842.46,0.88892008]
[1766640063624,0.88499405,843.18,842.46,0.88892008]
[1766640063830,1.17994952,843.17,842.46,0.88892008]
[1766640064027,1.17994952,843.16,842.46,0.88892008]
[1766640064225,1.17994952,843.15,842.46,0.88892008]
[1766640064428,1.17994952,843.14,842.46,0.88892008]
[1766640064627,1.17994952,843.13,842.46,0.88892008]
[1766640064827,1.17994952,843.12,842.46,0.88892008]
[1766640065126,1.18036378,843.11,842.46,0.88892008]
[1766640065330,1.18036378,843.1,842.46,0.88892008]
[1766640065530,1.18036378,843.09,842.48,0.88892008]
[1766640065826,1.18036378,843.08,842.48,0.88892008]
[1766640066031,0.88499405,843.19,842.48,0.88892008]
[1766640066228,1.18039402,843.18,842.48,0.88892008]
[1766640066530,1.18039402,843.17,842.48,0.88892008]
[1766640066730,1.18039402,843.16,842.48,0.88892008]
[1766640066928,1.18039402,843.15,842.48,0.88892008]
[1766640067128,1.18039402,843.14,842.48,0.88892008]
[1766640067427,1.18039402,843.13,842.48,0.88892008]
[1766640067728,1.18039402,843.12,842.48,0.88892008]
[1766640068028,1.18039402,843.11,842.48,0.88892008]
[1766640068229,1.18039402,843.1,842.48,0.88892008]
[1766640068431,1.18039402,843.09,842.48,0.88892008]
[1766640068631,1.18039402,843.08,842.48,0.88892008]
[1766640068829,0.88499405,843.19,842.48,0.88892008]
[1766640069033,1.18039366,843.18,842.48,0.88892008]
[1766640069233,1.18039366,843.17,842.48,0.88892008]
[1766640069434,1.18039366,843.16,842.48,0.88892008]
[1766640069634,1.18039366,843.15,842.48,0.88892008]
[1766640069935,1.18039366,843.14,842.48,0.88892008]
[1766640070130,1.18039366,843.13,842.48,0.88892008]
[1766640070330,1.17929067,843.12,842.48,0.88892008]
[1766640070534,1.17929067,843.11,842.48,0.88892008]
[1766640070732,1.17929067,843.1,842.48,0.88892008]
[1766640070934,0.88499405,843.19,842.48,0.88892008]
[1766640071136,1.17929156,843.18,842.48,0.88892008]
[1766640071336,1.17929156,843.17,842.48,0.88892008]
[1766640071534,1.17929156,843.16,842.48,0.88892008]
[1766640071734,1.17929156,843.15,842.48,0.88892008]
[1766640072038,1.17929156,843.14,842.48,0.88892008]
[1766640072238,1.17929156,843.13,842.48,0.88892008]
[1766640072538,1.17929156,843.12,842.48,0.88892008]
[1766640072738,1.17929156,843.11,842.48,0.88892008]
[1766640072935,1.17929156,843.1,842.48,0.88892008]
[1766640073239,1.17929156,843.09,842.48,0.88892008]
[1766640073439,0.88499405,843.2,842.48,0.88892008]
[1766640073641,1.17929353,843.19,842.48,0.88892008]
[1766640073941,1.17929353,843.18,842.48,0.88892008]
[1766640074142,1.17929353,843.17,842.48,0.88892008]
[1766640074347,1.17929353,843.16,842.48,0.88892008]
[1766640074540,1.17929353,843.15,842.51,0.88892008]
[1766640074838,1.17929353,843.14,842.51,0.88892008]
[1766640075037,1.17929353,843.13,842.53,0.88892008]
[1766640075240,0.20640263,843.23,842.52,0.88892008]
[1766640075440,1.17941054,843.22,842.52,0.88892008]
[1766640075642,1.17941054,843.21,842.52,0.88892008]
[1766640075937,1.17941054,843.2,842.52,0.88892008]
[1766640076138,1.17941054,843.19,842.55,0.88892008]
[1766640076342,1.17941054,843.18,842.55,0.88892008]
[1766640076540,0.20640263,843.23,842.56,0.88892008]
[1766640076739,1.17957268,843.22,842.56,0.88892008]
[1766640076942,1.17957268,843.21,842.56,0.88892008]
[1766640077141,1.17957268,843.2,842.56,0.88892008]
[1766640077339,1.17957268,843.19,842.55,0.88892008]
[1766640077543,0.20640263,843.23,842.55,0.88892008]
[1766640077744,1.17935713,843.22,842.56,0.88892008]
[1766640077944,1.17935713,843.21,842.56,0.88892008]
[1766640078241,1.17935713,843.2,842.55,0.88892008]
[1766640078441,0.20640263,843.23,842.55,0.88892008]
[1766640078645,1.17917472,843.22,842.55,0.88892008]
[1766640078944,1.17917472,843.21,842.55,0.88892008]
[1766640079144,1.17917472,843.2,842.55,0.88892008]
[1766640079441,0.20640263,843.23,842.55,0.88892008]
[1766640079644,1.17901325,843.22,842.55,0.88892008]
[1766640079944,1.17901325,843.21,842.55,0.88892008]
[1766640080139,0.20640263,843.23,842.55,0.88892008]
[1766640080341,1.17901301,843.22,842.54,0.88892008]
[1766640080645,0.20640263,843.23,842.56,0.88892008]
[1766640081442,0.20640263,843.23,842.55,0.88892008]
[1766640086248,0.20640263,843.23,842.54,0.88892008]
[1766640089049,0.20640263,843.23,842.58,0.88892008]
[1766640089355,0.20640263,843.23,842.57,0.88892008]
[1766640090251,0.88499405,843.42,842.57,0.88892008]
[1766640090456,0.20638733,843.31,842.57,0.88892008]
[1766640090754,1.17764834,843.3,842.57,0.88892008]
[1766640090955,0.20638733,843.31,842.59,0.88892008]
[1766640091354,0.20638733,843.31,842.58,0.88892008]
[1766640094256,0.20638733,843.31,842.57,0.88892008]
[1766640096366,0.20638733,843.31,842.6,0.88892008]
[1766640100371,0.20638733,843.31,842.59,0.88892008]
[1766640108280,0.20638733,843.31,842.6,0.88892008]
[1766640113288,0.20638733,843.31,842.61,0.88892008]
[1766640116189,0.20638733,843.31,842.62,0.88892008]
[1766640118389,0.20638733,843.31,842.63,0.88892008]
[1766640119391,0.20638733,843.31,842.64,0.88892008]
[1766640123199,0.20638733,843.31,842.65,0.88892008]